fUST/lending_fUST_20250817
["ID","MTS","AMOUNT","RATE_DAILY","PERIOD"]
[379849451,1755424243653,-480.0,0.00019844,2]
[379849453,1755424243663,-480.0,0.00019844,2]
[379849455,1755424243673,-480.0,0.00019844,2]
[379849457,1755424243682,-480.0,0.00019844,2]
[379849460,1755424243692,-480.0,0.00019844,2]
[379849462,1755424243702,-480.0,0.00019844,2]
[379849463,1755424243711,-225.0099194,0.00019844,2]
[379849466,1755424243721,-480.0,0.00019844,2]
[379849468,1755424243730,-480.0,0.00019844,2]
[379849470,1755424243739,-527.55273355,0.00019844,2]
[379849472,1755424243748,-480.0,0.00019844,2]
[379849474,1755424243758,-480.0,0.00019844,2]
[379849476,1755424243767,-480.0,0.00019844,2]
[379849478,1755424243776,-480.0,0.00019844,2]
[379849479,1755424243786,-480.0,0.00019844,2]
[379849481,1755424243795,-480.0,0.00019844,2]
[379849483,1755424243804,-480.0,0.00019844,2]
[379849485,1755424243813,-480.0,0.00019844,2]
[379849487,1755424243822,-480.0,0.00019844,2]
[379849490,1755424243832,-480.0,0.00019844,2]
[379849492,1755424243841,-480.0,0.00019844,2]
[379849494,1755424243850,-979.4,0.00019844,2]
[379849496,1755424243860,-979.4,0.00019844,2]
[379849498,1755424243869,-480.0,0.00019844,2]
[379849500,1755424243878,-480.0,0.00019844,2]
[379849502,1755424243888,-480.0,0.00019844,2]
[379849504,1755424243897,-480.0,0.00019844,2]
[379849506,1755424243906,-4061.81,0.00019844,2]
[379849508,1755424243916,-480.0,0.00019844,2]
[379849510,1755424243926,-480.0,0.00019844,2]
[379849512,1755424243935,-480.0,0.00019844,2]
[379849514,1755424243944,-480.0,0.00019844,2]
[379849516,1755424243953,-480.0,0.00019844,2]
[379849518,1755424243965,-480.0,0.00019844,2]
[379849520,1755424243974,-480.0,0.00019844,2]
[379849522,1755424243983,-573.66,0.00019844,2]
[379849524,1755424243992,-480.0,0.00019844,2]
[379849526,1755424244001,-480.0,0.00019844,2]
[379849528,1755424244010,-480.0,0.00019844,2]
[379849530,1755424244019,-480.0,0.00019844,2]
[379849531,1755424244028,-480.0,0.00019844,2]
[379849533,1755424244037,-480.0,0.00019844,2]
[379849535,1755424244046,-480.0,0.00019845,2]
[379849537,1755424244055,-480.0,0.00019845,2]
[379849539,1755424244064,-510.8,0.00019845,2]
[379849541,1755424244073,-480.0,0.00019845,2]
[379849543,1755424244082,-480.0,0.00019845,2]
[379849545,1755424244091,-480.0,0.00019845,2]
[379849547,1755424244100,-480.0,0.00019845,2]
[379849549,1755424244110,-480.0,0.00019845,2]
[379849551,1755424244119,-480.0,0.00019845,2]
[379849553,1755424244128,-480.0,0.00019845,2]
[379849555,1755424244138,-480.0,0.00019845,2]
[379849558,1755424244148,-159.23244392,0.00019845,2]
[379849574,1755424244292,-480.0,0.00019845,2]
[379849576,1755424244302,-576.51,0.00019845,2]
[379849578,1755424244312,-480.0,0.00019845,2]
[379849580,1755424244321,-560.4,0.00019845,2]
[379849582,1755424244330,-480.0,0.00019845,2]
[379849584,1755424244339,-480.0,0.00019845,2]
[379849586,1755424244350,-480.0,0.00019845,2]
[379849588,1755424244359,-480.0,0.00019845,2]
[379849590,1755424244368,-480.0,0.00019845,2]
[379849592,1755424244377,-480.0,0.00019845,2]
[379849593,1755424244386,-1748.87,0.00019845,2]
[379849595,1755424244395,-480.0,0.00019845,2]
[379849597,1755424244404,-480.0,0.00019845,2]
[379849599,1755424244414,-480.0,0.00019845,2]
[379849601,1755424244424,-480.0,0.00019845,2]
[379849603,1755424244433,-480.0,0.00019845,2]
[379849605,1755424244442,-480.0,0.00019845,2]
[379849607,1755424244451,-480.0,0.00019845,2]
[379849609,1755424244460,-2965.66,0.00019845,2]
[379849611,1755424244470,-1105.38,0.00019845,2]
[379849613,1755424244479,-480.0,0.00019845,2]
[379849615,1755424244488,-1000.0,0.00019846,2]
[379849617,1755424244499,-1000.0,0.00019846,2]
[379849619,1755424244508,-1000.0,0.00019846,2]
[379849621,1755424244517,-1000.0,0.00019846,2]
[379849623,1755424244527,-1000.0,0.00019846,2]
[379849625,1755424244538,-433.46,0.00019848,2]
[379849628,1755424244557,-464.295362,0.00019863,2]
[379849630,1755424244567,-151.0,0.000199,2]
[379849632,1755424244577,-200.0,0.0001996,20]
[379849634,1755424244586,-200.0,0.0001996,20]
[379849636,1755424244596,-200.0,0.0001996,20]
[379849638,1755424244605,-200.0,0.0001996,20]
[379849639,1755424244614,-200.0,0.0001996,20]
[379849641,1755424244623,-200.0,0.0001996,20]
[379849643,1755424244632,-200.0,0.0001996,20]
[379849645,1755424244642,-200.0,0.0001996,20]
[379849647,1755424244651,-200.0,0.0001996,20]
[379849649,1755424244661,-200.0,0.0001996,20]
[379849651,1755424244670,-979.4,0.00019976,2]
[379849653,1755424244679,-185.66593461,0.00019976,2]
[379849655,1755424244689,-151.0,0.0002,4]
[379849657,1755424244698,-153.0,0.0002,2]
[379849659,1755424244708,-153.0,0.0002,2]
[379849661,1755424244717,-160.7855539,0.0002,2]
[379849663,1755424244726,-160.7855539,0.0002,2]
[379849665,1755424244735,-160.7855539,0.0002,2]
[379849667,1755424244744,-160.7855539,0.0002,2]
[379849669,1755424244754,-500.0,0.0002,2]
[379849671,1755424244764,-160.7855539,0.0002,2]
[379849673,1755424244773,-151.0,0.0002,2]
[379849675,1755424244782,-12682.46447135,0.00020064,2]
[379849677,1755424244791,-375.77065697,0.00020064,2]
[379849680,1755424244801,-160.0,0.00020064,2]
[379849682,1755424244811,-160.0,0.00020064,2]
[379849684,1755424244820,-232.1512529,0.00020064,2]
[379849686,1755424244829,-843.71309931,0.00020064,2]
[379849688,1755424244838,-160.0,0.00020064,2]
[379849690,1755424244847,-160.0,0.00020064,2]
[379849691,1755424244857,-528.48506731,0.00020064,2]
[379849693,1755424244866,-417.15472785,0.00020064,2]
[379849695,1755424244876,-160.0,0.00020064,2]
[379849697,1755424244885,-215.71995163,0.00020064,2]
[379849699,1755424244894,-160.0,0.00020066,2]
[379849701,1755424244903,-160.0,0.00020066,2]
[379849703,1755424244912,-979.4,0.00020076,2]
[379849705,1755424244922,-500.0,0.00020082,2]
[379849707,1755424244932,-151.0,0.000201,4]
[379849709,1755424244942,-480.0,0.00020115,2]
[379849711,1755424244952,-483.07,0.00020115,2]
[379849713,1755424244962,-480.0,0.00020116,2]
[379849715,1755424244971,-480.0,0.00020116,2]
[379849717,1755424244980,-480.0,0.00020116,2]
[379849719,1755424244989,-480.0,0.00020116,2]
[379849721,1755424244998,-480.0,0.00020116,2]
[379849723,1755424245007,-983.46,0.00020116,2]
[379849725,1755424245016,-480.0,0.00020116,2]
[379849727,1755424245025,-480.0,0.00020116,2]
[379849729,1755424245034,-979.4,0.00020116,2]
[379849731,1755424245043,-480.0,0.00020116,2]
[379849733,1755424245052,-1475.15,0.00020116,2]
[379849735,1755424245062,-480.0,0.00020116,2]
[379849737,1755424245071,-480.0,0.00020116,2]
[379849739,1755424245080,-480.0,0.00020116,2]
[379849741,1755424245089,-480.0,0.00020116,2]
[379849743,1755424245098,-812.54,0.00020116,2]
[379849745,1755424245107,-480.0,0.00020116,2]
[379849747,1755424245116,-480.0,0.00020116,2]
[379849749,1755424245126,-480.0,0.00020116,2]
[379849750,1755424245135,-480.0,0.00020116,2]
[379849751,1755424245144,-480.0,0.00020116,2]
[379849752,1755424245154,-480.0,0.00020116,2]
[379849753,1755424245165,-480.0,0.00020116,2]
[379849754,1755424245174,-2334.4,0.00020116,2]
[379849755,1755424245183,-1174.85,0.00020116,2]
[379849756,1755424245192,-359.86563981,0.00020116,2]
[379849757,1755424245201,-480.0,0.00020116,2]
[379849758,1755424245210,-480.0,0.00020116,2]
[379849759,1755424245219,-673.59,0.00020116,2]
[379849760,1755424245228,-480.0,0.00020116,2]
[379849761,1755424245237,-480.0,0.00020116,2]
[379849762,1755424245247,-529.61,0.00020117,2]
[379849763,1755424245257,-480.0,0.00020117,2]
[379849764,1755424245266,-480.0,0.00020117,2]
[379849765,1755424245276,-480.0,0.00020117,2]
[379849766,1755424245286,-480.0,0.00020117,2]
[379849767,1755424245295,-698.82,0.00020117,2]
[379849768,1755424245304,-480.0,0.00020117,2]
[379849769,1755424245314,-480.0,0.00020117,2]
[379849770,1755424245324,-480.0,0.00020117,2]
[379849771,1755424245333,-480.0,0.00020117,2]
[379849772,1755424245342,-480.0,0.00020117,2]
[379849773,1755424245351,-480.0,0.00020117,2]
[379849774,1755424245360,-507.3,0.00020117,2]
[379849775,1755424245368,-480.0,0.00020117,2]
[379849776,1755424245378,-1365.86,0.00020117,2]
[379849777,1755424245387,-1507.22,0.00020117,2]
[379849778,1755424245395,-480.0,0.00020117,2]
[379849780,1755424245405,-4454.11,0.00020117,2]
[379849783,1755424245423,-480.0,0.00020117,2]
[379849784,1755424245436,-480.0,0.00020117,2]
[379849787,1755424245459,-480.0,0.00020117,2]
[379849789,1755424245493,-480.0,0.00020117,2]
[379849791,1755424245505,-979.4,0.00020117,2]
[379849793,1755424245514,-979.4,0.00020117,2]
[379849795,1755424245524,-480.0,0.00020117,2]
[379849797,1755424245533,-480.0,0.00020117,2]
[379849799,1755424245545,-480.0,0.00020117,2]
[379849801,1755424245555,-480.0,0.00020117,2]
[379849803,1755424245564,-480.0,0.00020117,2]
[379849806,1755424245574,-480.0,0.00020117,2]
[379849809,1755424245584,-480.0,0.00020117,2]
[379849811,1755424245593,-480.0,0.00020117,2]
[379849814,1755424245602,-263.95962831,0.00020117,2]
[379849816,1755424245612,-480.0,0.00020117,2]
[379849818,1755424245620,-480.0,0.00020117,2]
[379849821,1755424245630,-480.0,0.00020117,2]
[379849823,1755424245639,-507.68073939,0.00020117,2]
[379849825,1755424245648,-813.12,0.00020117,2]
[379849826,1755424245657,-480.0,0.00020117,2]
[379849828,1755424245669,-854.81,0.00020117,2]
[379849830,1755424245678,-480.0,0.00020117,2]
[379849832,1755424245687,-480.0,0.00020117,2]
[379849834,1755424245697,-480.0,0.00020117,2]
[379849836,1755424245706,-480.0,0.00020117,2]
[379849838,1755424245715,-494.78239197,0.00020117,2]
[379849840,1755424245725,-480.0,0.00020117,2]
[379849842,1755424245734,-480.0,0.00020117,2]
[379849844,1755424245744,-480.0,0.00020117,2]
[379849846,1755424245753,-480.0,0.00020117,2]
[379849848,1755424245763,-480.0,0.00020117,2]
[379849850,1755424245772,-155.99,0.00020118,2]
[379849852,1755424245781,-480.0,0.00020118,2]
[379849854,1755424245791,-480.0,0.00020118,2]
[379849856,1755424245800,-480.0,0.00020118,2]
[379849858,1755424245809,-480.0,0.00020118,2]
[379849860,1755424245819,-480.0,0.00020118,2]
[379849862,1755424245829,-582.22,0.00020118,2]
[379849864,1755424245838,-519.87,0.00020118,2]
[379849866,1755424245848,-480.0,0.00020118,2]
[379849868,1755424245858,-480.0,0.00020118,2]
[379849870,1755424245868,-600.26,0.00020118,2]
[379849872,1755424245878,-480.0,0.00020118,2]
[379849874,1755424245888,-480.0,0.00020118,2]
[379849876,1755424245898,-564.04,0.00020118,2]
[379849878,1755424245908,-480.0,0.00020118,2]
[379849880,1755424245921,-480.0,0.00020118,2]
[379849882,1755424245931,-480.0,0.00020118,2]
[379849883,1755424245941,-480.0,0.00020118,2]
[379849885,1755424245951,-480.0,0.00020118,2]
[379849887,1755424245961,-480.0,0.00020118,2]
[379849889,1755424245973,-378.62460846,0.00020118,2]
[379849891,1755424245983,-480.0,0.00020118,2]
[379849893,1755424245995,-480.0,0.00020118,2]
[379849895,1755424246005,-646.87,0.00020118,2]
[379849897,1755424246015,-480.0,0.00020118,2]
[379849899,1755424246024,-480.0,0.00020118,2]
[379849901,1755424246034,-480.0,0.00020118,2]
[379849903,1755424246044,-480.0,0.00020118,2]
[379849905,1755424246054,-484.9731701,0.00020118,2]
[379849907,1755424246063,-480.0,0.00020118,2]
[379849909,1755424246072,-480.0,0.00020118,2]
[379849911,1755424246081,-480.0,0.00020118,2]
[379849913,1755424246091,-480.0,0.00020118,2]
[379849915,1755424246100,-480.0,0.00020118,2]
[379849917,1755424246110,-480.0,0.00020118,2]
[379849919,1755424246119,-480.0,0.00020118,2]
[379849921,1755424246129,-480.0,0.00020118,2]
[379849923,1755424246138,-480.0,0.00020118,2]
[379849925,1755424246147,-480.0,0.00020118,2]
[379849927,1755424246157,-480.0,0.00020118,2]
[379849929,1755424246169,-571.81,0.00020118,2]
[379849931,1755424246178,-480.0,0.00020118,2]
[379849933,1755424246187,-480.0,0.00020118,2]
[379849935,1755424246196,-480.0,0.00020118,2]
[379849937,1755424246205,-480.0,0.00020118,2]
[379849939,1755424246215,-480.0,0.00020118,2]
[379849941,1755424246224,-291.6915838,0.00020118,2]
[379849943,1755424246233,-480.0,0.00020118,2]
[379849945,1755424246243,-480.0,0.00020118,2]
[379849947,1755424246253,-4061.81,0.00020118,2]
[379849949,1755424246262,-480.0,0.00020118,2]
[379849951,1755424246271,-480.0,0.00020118,2]
[379849953,1755424246280,-480.0,0.00020118,2]
[379849955,1755424246289,-480.0,0.00020118,2]
[379849957,1755424246298,-480.0,0.00020118,2]
[379849958,1755424246308,-480.0,0.00020118,2]
[379849960,1755424246317,-535.98,0.00020118,2]
[379849962,1755424246326,-573.66,0.00020118,2]
[379849964,1755424246336,-480.0,0.00020118,2]
[379849966,1755424246345,-480.0,0.00020118,2]
[379849968,1755424246353,-530.88,0.00020118,2]
[379849970,1755424246363,-480.0,0.00020118,2]
[379849972,1755424246372,-480.0,0.00020118,2]
[379849974,1755424246381,-480.0,0.00020119,2]
[379849976,1755424246390,-480.0,0.00020119,2]
[379849978,1755424246399,-480.0,0.00020119,2]
[379849980,1755424246410,-549.88,0.00020119,2]
[379849982,1755424246419,-480.0,0.00020119,2]
[379849984,1755424246428,-480.0,0.00020119,2]
[379849986,1755424246437,-560.4,0.00020119,2]
[379849988,1755424246446,-480.0,0.00020119,2]
[379849990,1755424246455,-480.0,0.00020119,2]
[379849992,1755424246465,-480.0,0.00020119,2]
[379849994,1755424246474,-1748.87,0.00020119,2]
[379849996,1755424246482,-480.0,0.00020119,2]
[379849998,1755424246491,-480.0,0.00020119,2]
[379850000,1755424246501,-480.0,0.00020119,2]
[379850002,1755424246510,-979.4,0.00020119,2]
[379850004,1755424246519,-979.4,0.00020119,2]
[379850006,1755424246528,-979.4,0.00020119,2]
[379850007,1755424246537,-979.4,0.00020119,2]
[379850009,1755424246551,-979.49279647,0.00020119,2]
[379850011,1755424246560,-480.0,0.00020119,2]
[379850013,1755424246569,-2965.66,0.00020119,2]
[379850015,1755424246578,-1105.38,0.00020119,2]
[379850017,1755424246589,-151.0,0.00020119,2]
[379850019,1755424246598,-168.0,0.00020128,2]
[379850021,1755424246607,-282.0,0.00020154,2]
[379850023,1755424246616,-377.953937,0.00020187,2]
[379850025,1755424246626,-151.0,0.000202,4]
[379850027,1755424246636,-185.39311456,0.00020247,2]
[379850029,1755424246645,-800.0,0.00020248,2]
[379850031,1755424246654,-5000.0,0.00020261,2]
[379850033,1755424246663,-771.294426,0.00020282,2]
[379850035,1755424246672,-771.294426,0.00020282,2]
[379850037,1755424246682,-163.612426,0.00020282,2]
[379850039,1755424246691,-163.612426,0.00020282,2]
[379850041,1755424246700,-151.0,0.00020282,2]
[379850043,1755424246709,-151.0,0.00020282,2]
[379850045,1755424246719,-151.0,0.00020282,2]
[379850047,1755424246728,-350.7,0.00020295,2]
[379850049,1755424246737,-151.0,0.000203,3]
[379850051,1755424246746,-200.0,0.0002031,2]
[379850053,1755424246755,-397.87704058,0.00020322,2]
[379850055,1755424246764,-185.39311456,0.00020329,2]
[379850057,1755424246773,-160.7855539,0.00020356,2]
[379850059,1755424246782,-160.7855539,0.00020356,2]
[379850060,1755424246797,-160.7855539,0.00020356,2]
[379850062,1755424246806,-321.4724794,0.00020356,2]
[379850064,1755424246816,-800.0,0.00020376,2]
[379850066,1755424246825,-480.0,0.00020389,2]
[379850068,1755424246834,-480.0,0.0002039,2]
[379850070,1755424246843,-480.0,0.0002039,2]
[379850072,1755424246852,-480.0,0.0002039,2]
[379850074,1755424246861,-983.46,0.0002039,2]
[379850076,1755424246870,-480.0,0.0002039,2]
[379850078,1755424246879,-1475.15,0.0002039,2]
[379850080,1755424246888,-267.79,0.0002039,2]
[379850082,1755424246897,-480.0,0.0002039,2]
[379850084,1755424246906,-812.54,0.0002039,2]
[379850086,1755424246918,-491.78,0.0002039,2]
[379850088,1755424246928,-536.49,0.0002039,2]
[379850090,1755424246937,-473.69,0.0002039,2]
[379850092,1755424246947,-480.0,0.0002039,2]
[379850094,1755424246956,-480.0,0.0002039,2]
[379850096,1755424246966,-480.0,0.0002039,2]
[379850098,1755424246974,-1174.85,0.0002039,2]
[379850100,1755424246983,-2334.4,0.0002039,2]
[379850102,1755424246993,-472.4462754,0.0002039,2]
[379850104,1755424247002,-480.0,0.0002039,2]
[379850106,1755424247012,-673.59,0.0002039,2]
[379850108,1755424247021,-178.34,0.0002039,2]
[379850110,1755424247030,-480.0,0.00020391,2]
[379850112,1755424247040,-698.82,0.00020391,2]
[379850114,1755424247048,-480.0,0.00020391,2]
[379850116,1755424247057,-480.0,0.00020391,2]
[379850118,1755424247066,-480.0,0.00020391,2]
[379850120,1755424247075,-151.0,0.00020391,2]
[379850121,1755424247084,-397.03,0.00020391,2]
[379850123,1755424247093,-152.530069,0.00020391,2]
[379850125,1755424247102,-480.0,0.00020391,2]
[379850127,1755424247112,-1365.86,0.00020391,2]
[379850129,1755424247121,-1507.22,0.00020391,2]
[379850131,1755424247131,-480.0,0.00020391,2]
[379850133,1755424247141,-4454.11,0.00020391,2]
[379850135,1755424247151,-220.61308202,0.00020391,2]
[379850137,1755424247161,-480.0,0.00020391,2]
[379850139,1755424247170,-480.0,0.00020391,2]
[379850141,1755424247180,-480.0,0.00020391,2]
[379850143,1755424247190,-518.68,0.00020391,2]
[379850145,1755424247199,-480.0,0.00020391,2]
[379850147,1755424247208,-437.19,0.00020391,2]
[379850161,1755424247332,-400.0,0.00020391,2]
[379850162,1755424247343,-480.0,0.00020391,2]
[379850164,1755424247351,-480.0,0.00020391,2]
[379850166,1755424247361,-480.0,0.00020391,2]
[379850169,1755424247371,-480.0,0.00020391,2]
[379850171,1755424247381,-813.12,0.00020391,2]
[379850173,1755424247391,-151.0,0.00020391,2]
[379850175,1755424247400,-480.0,0.00020391,2]
[379850177,1755424247410,-854.81,0.00020391,2]
[379850178,1755424247419,-594.33643387,0.00020391,2]
[379850180,1755424247428,-508.3856485,0.00020391,2]
[379850182,1755424247438,-480.0,0.00020391,2]
[379850184,1755424247447,-480.0,0.00020391,2]
[379850186,1755424247456,-480.0,0.00020391,2]
[379850188,1755424247466,-538.61,0.00020391,2]
[379850190,1755424247475,-151.0,0.00020391,2]
[379850192,1755424247484,-151.0,0.00020391,2]
[379850194,1755424247494,-480.0,0.00020391,2]
[379850196,1755424247503,-152.075213,0.00020392,2]
[379850198,1755424247512,-480.0,0.00020392,2]
[379850200,1755424247521,-480.0,0.00020392,2]
[379850202,1755424247530,-480.0,0.00020392,2]
[379850204,1755424247542,-480.0,0.00020392,2]
[379850206,1755424247553,-582.22,0.00020392,2]
[379850208,1755424247562,-519.87,0.00020392,2]
[379850209,1755424247572,-480.0,0.00020392,2]
[379850211,1755424247583,-480.0,0.00020392,2]
[379850213,1755424247592,-226.609442,0.00020392,2]
[379850215,1755424247601,-226.609442,0.00020392,2]
[379850217,1755424247611,-480.0,0.00020392,2]
[379850219,1755424247620,-480.0,0.00020392,2]
[379850221,1755424247630,-480.0,0.00020392,2]
[379850223,1755424247639,-480.0,0.00020392,2]
[379850225,1755424247649,-480.0,0.00020392,2]
[379850227,1755424247658,-480.0,0.00020392,2]
[379850229,1755424247669,-480.0,0.00020392,2]
[379850231,1755424247679,-646.87,0.00020392,2]
[379850233,1755424247689,-480.0,0.00020392,2]
[379850235,1755424247698,-480.0,0.00020392,2]
[379850237,1755424247708,-246.39,0.00020392,2]
[379850239,1755424247717,-480.0,0.00020392,2]
[379850241,1755424247726,-480.0,0.00020392,2]
[379850243,1755424247735,-480.0,0.00020392,2]
[379850245,1755424247744,-480.0,0.00020392,2]
[379850247,1755424247753,-480.0,0.00020392,2]
[379850249,1755424247766,-152.399952,0.00020392,2]
[379850251,1755424247775,-466.88216697,0.00020392,2]
[379850253,1755424247784,-151.0,0.00020392,2]
[379850254,1755424247793,-480.0,0.00020392,2]
[379850255,1755424247802,-480.0,0.00020392,2]
[379850256,1755424247811,-151.0,0.00020392,2]
[379850257,1755424247820,-480.0,0.00020392,2]
[379850258,1755424247829,-480.0,0.00020392,2]
[379850259,1755424247839,-4061.81,0.00020392,2]
[379850260,1755424247848,-467.61553936,0.00020392,2]
[379850261,1755424247857,-480.0,0.00020392,2]
[379850262,1755424247866,-480.0,0.00020392,2]
[379850263,1755424247874,-573.66,0.00020392,2]
[379850264,1755424247883,-205.56,0.00020393,2]
[379850265,1755424247892,-207.68,0.00020393,2]
[379850267,1755424247902,-560.4,0.00020393,2]
[379850269,1755424247912,-151.0,0.00020393,2]
[379850271,1755424247922,-165.944507,0.00020393,2]
[379850273,1755424247932,-165.944507,0.00020393,2]
[379850275,1755424247945,-151.0,0.00020393,2]
[379850277,1755424247954,-1748.87,0.00020393,2]
[379850279,1755424247963,-480.0,0.00020393,2]
[379850281,1755424247972,-480.0,0.00020393,2]
[379850283,1755424247981,-480.0,0.00020393,2]
[379850285,1755424247990,-2965.66,0.00020393,2]
[379850287,1755424248001,-1105.38,0.00020393,2]
[379850289,1755424248010,-168.428219,0.00020394,2]
[379850291,1755424248019,-151.0,0.00020394,2]
[379850293,1755424248029,-151.0,0.00020396,2]
[379850295,1755424248038,-500.0,0.00020396,2]
[379850296,1755424248047,-153.91704026,0.00020396,2]
[379850298,1755424248057,-151.0,0.00020396,2]
[379850300,1755424248066,-151.0,0.00020396,2]
[379850302,1755424248075,-151.0,0.00020396,2]
[379850304,1755424248084,-151.0,0.00020396,2]
[379850306,1755424248094,-151.0,0.00020396,2]
[379850308,1755424248104,-151.0,0.00020396,2]
[379850310,1755424248113,-254.77701284,0.00020396,2]
[379850312,1755424248122,-151.0,0.00020396,2]
[379850314,1755424248132,-1356.0,0.00020396,2]
[379850316,1755424248141,-151.0,0.00020396,2]
[379850318,1755424248150,-151.0,0.00020396,2]
[379850320,1755424248160,-151.0,0.00020396,2]
[379850322,1755424248170,-157.68229689,0.00020396,2]
[379850324,1755424248180,-151.0,0.000204,3]
[379850326,1755424248189,-350.7,0.00020436,2]
[379850328,1755424248198,-185.39311456,0.00020438,2]
[379850330,1755424248208,-160.0,0.00020454,2]
[379850332,1755424248218,-500.0,0.00020473,2]
[379850334,1755424248227,-500.0,0.00020473,2]
[379850336,1755424248236,-500.0,0.00020473,2]
[379850338,1755424248246,-500.7173259,0.00020473,2]
[379850340,1755424248255,-500.0,0.00020473,2]
[379850342,1755424248265,-500.0,0.00020473,2]
[379850344,1755424248275,-501.25711225,0.00020473,2]
[379850346,1755424248284,-500.0,0.00020473,2]
[379850348,1755424248294,-500.0,0.00020473,2]
[379850350,1755424248303,-500.0,0.00020473,2]
[379850352,1755424248314,-500.0,0.00020473,2]
[379850354,1755424248324,-500.0,0.00020473,2]
[379850356,1755424248333,-502.13602325,0.00020473,2]
[379850358,1755424248343,-502.29518042,0.00020473,2]
[379850360,1755424248353,-500.71946824,0.00020473,2]
[379850362,1755424248363,-500.0,0.00020473,2]
[379850364,1755424248373,-500.0,0.00020473,2]
[379850366,1755424248383,-500.0,0.00020473,2]
[379850368,1755424248393,-500.0,0.00020473,2]
[379850370,1755424248402,-500.0,0.00020473,2]
[379850372,1755424248413,-500.0,0.00020473,2]
[379850374,1755424248423,-500.0,0.00020473,2]
[379850376,1755424248432,-500.0,0.00020473,2]
[379850378,1755424248441,-500.0,0.00020473,2]
[379850380,1755424248451,-500.0,0.00020473,2]
[379850382,1755424248460,-500.0,0.00020473,2]
[379850384,1755424248469,-500.0,0.00020473,2]
[379850385,1755424248478,-394.04902133,0.00020473,2]
[379850387,1755424248487,-500.0,0.00020473,2]
[379850389,1755424248497,-500.0,0.00020473,2]
[379850392,1755424248508,-501.23763847,0.00020473,2]
[379850393,1755424248517,-500.0,0.00020473,2]
[379850395,1755424248527,-428.16216798,0.00020473,2]
[379850397,1755424248537,-500.0,0.00020473,2]
[379850399,1755424248549,-500.64506414,0.00020473,2]
[379850401,1755424248558,-158.2102775,0.00020473,2]
[379850403,1755424248568,-500.0,0.00020473,2]
[379850405,1755424248577,-500.0,0.00020473,2]
[379850407,1755424248587,-500.0,0.00020473,2]
[379850409,1755424248596,-500.0,0.00020473,2]
[379850411,1755424248606,-500.0,0.00020473,2]
[379850413,1755424248617,-502.45168872,0.00020473,2]
[379850415,1755424248630,-500.0,0.00020473,2]
[379850417,1755424248652,-500.0,0.00020473,2]
[379850419,1755424248670,-500.48515569,0.00020473,2]
[379850421,1755424248679,-500.0,0.00020473,2]
[379850423,1755424248688,-500.0,0.00020473,2]
[379850425,1755424248699,-500.0,0.00020473,2]
[379850427,1755424248709,-500.0,0.00020473,2]
[379850429,1755424248720,-500.0,0.00020473,2]